fUSD/lending_fUSD_20251026
["ID","MTS","AMOUNT","RATE_DAILY","PERIOD"]
[392406168,1761437017989,500.0,0.00036912,120]
[392406177,1761437069790,156.03,0.00016015,2]
[392406214,1761437431915,-212.06112615,0.00021224,2]
[392406215,1761437431925,-250.0,0.00023346,2]
[392406216,1761437431934,-150.0,0.00030033,4]
[392406217,1761437431943,-150.0,0.00030033,4]
[392406218,1761437431952,-150.0,0.00030033,4]
[392406219,1761437431962,-166.80831812,0.00030033,4]
[392406220,1761437431971,-150.0,0.00030033,4]
[392406221,1761437431979,-785.71451038,0.00031327,3]
[392406222,1761437431991,-414.28548962,0.00031327,3]
[392406223,1761437432000,-640.162,0.00031328,2]
[392406224,1761437432008,-903.0,0.00031328,2]
[392406225,1761437432018,-262.55251038,0.00031568,3]
[392406226,1761437432032,-37.44748962,0.00031568,3]
[392406227,1761437432041,-222.04251238,0.00031568,2]
[392406228,1761437432052,-177.95748762,0.00031568,2]
[392406229,1761437432061,-3607.96376996,0.00031569,2]
[392406230,1761437432221,-1347.37387704,0.00031569,2]
[392406231,1761437432231,-1200.0,0.00031728,3]
[392406232,1761437432240,-300.0,0.00031757,7]
[392406233,1761437432249,-1000.0,0.00031889,2]
[392406234,1761437432258,-187.83091178,0.00032,120]
[392406235,1761437432267,-999.0,0.00032059,3]
[392406237,1761437432277,-156.71,0.0003206,2]
[392406238,1761437432285,-323.51,0.0003208,120]
[392406239,1761437432295,-1000.0,0.00032139,2]
[392406240,1761437432304,-500.0,0.00032139,2]
[392406241,1761437432313,-500.0,0.00032139,2]
[392406242,1761437432322,-500.0,0.00032139,2]
[392406243,1761437432330,-500.0,0.00032139,2]
[392406244,1761437432340,-500.0,0.00032139,2]
[392406245,1761437432349,-500.0,0.00032139,2]
[392406246,1761437432358,-416.23340642,0.00032139,2]
[392406247,1761437432367,-500.0,0.0003214,7]
[392406248,1761437432376,-500.0,0.0003214,7]
[392406249,1761437432386,-500.0,0.0003214,7]
[392406250,1761437432395,-500.0,0.0003214,7]
[392406251,1761437432404,-500.0,0.0003214,7]
[392406252,1761437432413,-500.0,0.0003214,7]
[392406253,1761437432422,-500.0,0.0003214,7]
[392406255,1761437432431,-624.44,0.0003214,7]
[392406257,1761437432440,-500.0,0.0003214,7]
[392406259,1761437432449,-500.0,0.0003214,7]
[392406261,1761437432458,-500.0,0.0003214,7]
[392406263,1761437432467,-500.0,0.0003214,7]
[392406265,1761437432476,-500.0,0.0003214,7]
[392406267,1761437432485,-500.0,0.0003214,7]
[392406269,1761437432494,-500.0,0.0003214,7]
[392406271,1761437432503,-500.0,0.0003214,7]
[392406272,1761437432512,-500.0,0.0003214,7]
[392406273,1761437432520,-500.0,0.0003214,7]
[392406275,1761437432529,-500.0,0.0003214,7]
[392406278,1761437432538,-500.0,0.0003214,7]
[392406281,1761437432547,-500.0,0.0003214,7]
[392406284,1761437432556,-500.0,0.0003214,7]
[392406287,1761437432565,-500.0,0.0003214,7]
[392406290,1761437432574,-500.0,0.0003214,7]
[392406293,1761437432583,-500.0,0.0003214,7]
[392406296,1761437432592,-500.0,0.0003214,7]
[392406298,1761437432602,-500.0,0.0003214,7]
[392406300,1761437432611,-500.0,0.0003214,7]
[392406302,1761437432621,-500.0,0.0003214,7]
[392406304,1761437432630,-500.0,0.0003214,7]
[392406306,1761437432639,-500.0,0.0003214,7]
[392406308,1761437432650,-500.0,0.0003214,7]
[392406310,1761437432659,-500.0,0.0003214,7]
[392406312,1761437432668,-500.0,0.0003214,7]
[392406314,1761437432677,-500.0,0.0003214,7]
[392406316,1761437432691,-500.0,0.0003214,7]
[392406318,1761437432700,-500.0,0.0003214,7]
[392406320,1761437432709,-500.0,0.0003214,7]
[392406322,1761437432718,-500.0,0.0003214,7]
[392406324,1761437432728,-500.0,0.0003214,7]
[392406326,1761437432851,-500.0,0.0003214,7]
[392406327,1761437432862,-500.0,0.0003214,7]
[392406328,1761437432871,-500.0,0.0003214,7]
[392406329,1761437432880,-500.0,0.0003214,7]
[392406330,1761437432889,-500.0,0.0003214,7]
[392406331,1761437432898,-500.0,0.0003214,7]
[392406332,1761437432907,-500.0,0.0003214,7]
[392406333,1761437432916,-500.0,0.0003214,7]
[392406334,1761437432925,-500.0,0.0003214,7]
[392406335,1761437432934,-500.0,0.0003214,7]
[392406336,1761437432943,-500.0,0.0003214,7]
[392406337,1761437432952,-500.0,0.0003214,7]
[392406338,1761437432961,-500.0,0.0003214,7]
[392406339,1761437432970,-500.0,0.0003214,7]
[392406340,1761437432980,-500.0,0.0003214,7]
[392406341,1761437432989,-500.0,0.0003214,7]
[392406342,1761437432998,-500.0,0.0003214,7]
[392406343,1761437433010,-413.42,0.0003214,7]
[392406344,1761437433019,-500.0,0.0003214,7]
[392406345,1761437433028,-500.0,0.0003214,7]
[392406346,1761437433038,-500.0,0.0003214,7]
[392406347,1761437433047,-500.0,0.0003214,7]
[392406348,1761437433056,-500.0,0.0003214,7]
[392406349,1761437433065,-500.0,0.0003214,7]
[392406350,1761437433074,-500.0,0.0003214,7]
[392406351,1761437433083,-500.0,0.0003214,7]
[392406352,1761437433092,-648.24,0.0003214,7]
[392406353,1761437433101,-687.957889,0.0003274,2]
[392406354,1761437433110,-550.07951711,0.00032797,2]
[392406355,1761437433119,-1201.86,0.00032803,2]
[392406356,1761437433128,-1201.86,0.00032803,2]
[392406357,1761437433137,-1201.86,0.00032803,2]
[392406358,1761437433146,-1201.86,0.00032803,2]
[392406359,1761437433155,-1201.86,0.00032803,2]
[392406360,1761437433164,-1201.86,0.00032803,2]
[392406361,1761437433175,-1201.86,0.00032803,2]
[392406362,1761437433184,-1054.4,0.00032803,2]
[392406363,1761437433194,-200.0,0.00032834,2]
[392406364,1761437433203,-577.95368697,0.00032838,2]
[392406365,1761437433213,-3759.38974529,0.00032843,2]
[392406366,1761437433222,-2095.73128365,0.00032844,2]
[392406367,1761437433231,-277.35679052,0.00032855,2]
[392406368,1761437433241,-550.07951711,0.00032861,2]
[392406369,1761437433250,-572.0,0.00032874,2]
[392406370,1761437433260,-818.0,0.00032874,2]
[392406371,1761437433269,-2053.0,0.00032874,2]
[392406372,1761437433278,-3412.0,0.00032874,2]
[392406373,1761437433288,-687.957889,0.00032883,2]
[392406374,1761437433297,-577.95368697,0.00032894,2]
[392406375,1761437433307,-1201.86,0.000329,2]
[392406376,1761437433316,-1500.0,0.000329,12]
[392406377,1761437433325,-687.957889,0.00032913,2]
[392406378,1761437433334,-577.95368697,0.00032915,2]
[392406379,1761437433343,-2095.73128365,0.00032924,2]
[392406380,1761437433353,-2095.73128365,0.00032973,2]
[392406381,1761437433362,-1000.0,0.00032977,2]
[392406382,1761437433372,-2500.0,0.00032977,2]
[392406383,1761437433382,-434.981,0.00032977,34]
[392406384,1761437433391,-5000.0,0.00032978,2]
[392406385,1761437433401,-550.07951711,0.00032984,2]
[392406386,1761437433411,-3759.38974529,0.00032989,2]
[392406387,1761437433421,-229.91379194,0.0003299,2]
[392406388,1761437433432,-3759.38974529,0.00032997,2]
[392406389,1761437433442,-6693.38083224,0.00032999,2]
[392406390,1761437433451,-187.83091178,0.00033,120]
[392406391,1761437433460,-168.0,0.0003301,2]
[392406392,1761437433469,-250.0,0.00033057,2]
[392406393,1761437433479,-500.0,0.00033057,2]
[392406394,1761437433488,-250.0,0.00033057,2]
[392406395,1761437433498,-500.0,0.00033057,2]
[392406396,1761437433507,-250.0,0.00033057,2]
[392406397,1761437433516,-500.0,0.00033057,2]
[392406398,1761437433525,-250.0,0.00033057,2]
[392406399,1761437433534,-500.0,0.00033057,2]
[392406400,1761437433543,-250.0,0.00033057,2]
[392406401,1761437433552,-500.0,0.00033057,2]
[392406402,1761437433562,-250.0,0.00033057,2]
[392406403,1761437433572,-500.0,0.00033057,2]
[392406404,1761437433581,-500.0,0.00033057,2]
[392406405,1761437433590,-250.0,0.00033057,2]
[392406406,1761437433599,-500.0,0.00033057,2]
[392406407,1761437433608,-250.0,0.00033057,2]
[392406408,1761437433617,-500.0,0.00033057,2]
[392406409,1761437433627,-250.0,0.00033057,2]
[392406410,1761437433637,-151.0,0.00033057,2]
[392406411,1761437433646,-500.0,0.00033057,2]
[392406412,1761437433655,-151.0,0.00033057,2]
[392406413,1761437433665,-250.0,0.00033057,2]
[392406414,1761437433674,-500.0,0.00033057,2]
[392406415,1761437433685,-250.0,0.00033057,2]
[392406416,1761437433696,-151.0,0.00033057,2]
[392406417,1761437433706,-574.12855637,0.00033057,2]
[392406418,1761437433715,-322.6107,0.00033057,2]
[392406419,1761437433726,-559.26,0.00033057,2]
[392406420,1761437433736,-311.1,0.00033057,2]
[392406421,1761437433745,-500.0,0.00033073,5]
[392406422,1761437433755,-500.0,0.00033073,2]
[392406423,1761437433766,-500.0,0.00033073,5]
[392406424,1761437433776,-500.0,0.00033073,5]
[392406425,1761437433785,-208.047,0.00033076,2]
[392406426,1761437433795,-626.54048174,0.00033077,2]
[392406427,1761437433804,-16133.74628346,0.00033077,2]
[392406428,1761437433813,-500.0,0.00033077,2]
[392406429,1761437433823,-500.0,0.00033077,9]
[392406430,1761437433832,-500.0,0.00033077,9]
[392406431,1761437433842,-500.0,0.00033077,9]
[392406432,1761437433851,-500.0,0.00033077,9]
[392406433,1761437433860,-500.0,0.00033077,9]
[392406434,1761437433869,-500.0,0.00033077,9]
[392406435,1761437433879,-500.0,0.00033077,9]
[392406436,1761437433888,-500.0,0.00033077,9]
[392406437,1761437433898,-500.0,0.00033077,9]
[392406438,1761437433907,-500.0,0.00033077,9]
[392406439,1761437433916,-500.0,0.00033077,9]
[392406440,1761437433926,-500.0,0.00033077,9]
[392406441,1761437433935,-500.0,0.00033077,9]
[392406442,1761437433945,-564.48273664,0.00033077,9]
[392406443,1761437433954,-500.0,0.00033077,9]
[392406444,1761437433964,-500.0,0.00033077,9]
[392406445,1761437433973,-500.0,0.00033077,9]
[392406446,1761437433982,-500.0,0.00033077,9]
[392406447,1761437433991,-500.0,0.00033077,9]
[392406448,1761437434001,-500.0,0.00033077,9]
[392406449,1761437434010,-500.0,0.00033077,9]
[392406450,1761437434019,-562.38354764,0.00033077,9]
[392406451,1761437434029,-653.73,0.00033077,9]
[392406452,1761437434039,-500.0,0.00033077,9]
[392406453,1761437434048,-500.0,0.00033077,9]
[392406454,1761437434057,-500.0,0.00033077,9]
[392406455,1761437434066,-500.0,0.00033077,9]
[392406456,1761437434075,-500.0,0.00033077,9]
[392406457,1761437434084,-500.0,0.00033077,9]
[392406458,1761437434093,-500.0,0.00033077,9]
[392406459,1761437434101,-1014.38,0.00033077,9]
[392406460,1761437434110,-500.0,0.00033077,9]
[392406461,1761437434119,-500.0,0.00033077,9]
[392406462,1761437434128,-500.0,0.00033077,9]
[392406463,1761437434137,-582.45,0.00033077,9]
[392406464,1761437434146,-500.0,0.00033077,9]
[392406465,1761437434155,-500.0,0.00033077,9]
[392406466,1761437434164,-500.0,0.00033077,9]
[392406467,1761437434173,-500.0,0.00033077,9]
[392406468,1761437434182,-500.0,0.00033077,9]
[392406469,1761437434190,-500.0,0.00033077,9]
[392406470,1761437434200,-500.0,0.00033077,9]
[392406471,1761437434208,-500.0,0.00033077,9]
[392406472,1761437434217,-500.0,0.00033077,9]
[392406473,1761437434226,-500.0,0.00033077,9]
[392406474,1761437434235,-500.0,0.00033077,9]
[392406475,1761437434244,-630.85438466,0.00033077,9]
[392406476,1761437434253,-500.0,0.00033077,9]
[392406477,1761437434262,-500.0,0.00033077,9]
[392406478,1761437434271,-500.0,0.00033077,9]
[392406479,1761437434280,-500.0,0.00033077,9]
[392406480,1761437434289,-500.0,0.00033077,9]
[392406481,1761437434298,-500.0,0.00033077,9]
[392406482,1761437434307,-500.0,0.00033077,9]
[392406483,1761437434315,-500.0,0.00033077,9]
[392406484,1761437434324,-500.0,0.00033077,9]
[392406485,1761437434333,-500.0,0.00033077,9]
[392406486,1761437434342,-500.0,0.00033077,9]
[392406487,1761437434351,-500.0,0.00033077,9]
[392406488,1761437434360,-500.0,0.00033077,9]
[392406489,1761437434369,-500.0,0.00033077,9]
[392406490,1761437434378,-500.0,0.00033077,9]
[392406491,1761437434387,-300.0,0.00033077,2]
[392406492,1761437434396,-500.0,0.00033077,9]
[392406493,1761437434405,-500.0,0.00033077,9]
[392406494,1761437434414,-500.0,0.00033077,9]
[392406495,1761437434423,-500.0,0.00033077,9]
[392406496,1761437434431,-500.0,0.00033077,9]
[392406497,1761437434440,-500.0,0.00033077,9]
[392406498,1761437434450,-823.75,0.00033077,9]
[392406499,1761437434459,-500.0,0.00033077,9]
[392406500,1761437434469,-500.0,0.00033077,9]
[392406501,1761437434478,-500.0,0.00033077,9]
[392406502,1761437434487,-500.0,0.00033077,9]
[392406503,1761437434592,-510.75981434,0.00033077,9]
[392406504,1761437434602,-500.0,0.00033077,9]
[392406505,1761437434612,-583.94,0.00033077,9]
[392406506,1761437434622,-500.0,0.00033077,9]
[392406507,1761437434631,-500.0,0.00033077,9]
[392406508,1761437434641,-500.0,0.00033077,9]
[392406509,1761437434650,-500.0,0.00033077,9]
[392406510,1761437434659,-500.0,0.00033077,9]
[392406511,1761437434669,-500.0,0.00033077,9]
[392406512,1761437434679,-500.0,0.00033077,9]
[392406513,1761437434693,-500.0,0.00033077,9]
[392406514,1761437434702,-500.0,0.00033077,9]
[392406515,1761437434711,-500.0,0.00033077,9]
[392406516,1761437434721,-500.0,0.00033077,9]
[392406517,1761437434733,-214.17950371,0.00033077,9]
[392406518,1761437434743,-500.0,0.00033077,9]
[392406519,1761437434752,-500.0,0.00033077,9]
[392406520,1761437434763,-500.0,0.00033077,9]
[392406521,1761437434772,-500.0,0.00033077,9]
[392406522,1761437434782,-500.0,0.00033077,9]
[392406523,1761437434791,-500.0,0.00033077,9]
[392406524,1761437434800,-500.0,0.00033077,9]
[392406525,1761437434810,-500.0,0.00033077,9]
[392406526,1761437434819,-500.0,0.00033077,9]
[392406527,1761437434828,-181.12128652,0.00033077,9]
[392406528,1761437434838,-500.0,0.00033077,9]
[392406529,1761437434847,-500.0,0.00033077,9]
[392406530,1761437434857,-500.0,0.00033077,9]
[392406531,1761437434866,-500.0,0.00033077,9]
[392406532,1761437434875,-500.0,0.00033077,9]
[392406533,1761437434885,-500.0,0.00033077,9]
[392406534,1761437434894,-500.0,0.00033077,9]
[392406535,1761437434903,-500.0,0.00033077,9]
[392406536,1761437434912,-500.0,0.00033077,9]
[392406537,1761437434922,-500.0,0.00033077,9]
[392406538,1761437434931,-500.0,0.00033077,9]
[392406539,1761437434940,-500.0,0.00033077,9]
[392406540,1761437434949,-500.0,0.00033077,9]
[392406541,1761437434959,-500.0,0.00033077,9]
[392406542,1761437434968,-470.60860774,0.00033078,9]
[392406543,1761437434977,-500.0,0.00033078,9]
[392406544,1761437434987,-367.88,0.0003308,2]
[392406545,1761437434996,-1450.13,0.0003308,2]
[392406546,1761437435005,-200.0,0.00033085,30]
[392406547,1761437435016,-256.68390226,0.00033089,2]
[392406548,1761437435031,-111.19609774,0.00033089,2]
[392406549,1761437435041,-500.0,0.00033089,9]
[392406550,1761437435050,-775.84,0.00033089,9]
[392406551,1761437435060,-500.0,0.00033089,9]
[392406552,1761437435069,-500.0,0.00033089,9]
[392406553,1761437435078,-500.0,0.00033089,9]
[392406554,1761437435088,-500.0,0.00033089,9]
[392406555,1761437435097,-500.0,0.00033089,9]
[392406556,1761437435106,-500.0,0.00033089,9]
[392406557,1761437435117,-500.0,0.00033089,9]
[392406558,1761437435127,-500.0,0.00033089,9]
[392406559,1761437435136,-500.0,0.00033089,9]
[392406560,1761437435146,-441.77409823,0.00033089,9]
[392406561,1761437435157,-500.0,0.00033089,9]
[392406562,1761437435167,-500.0,0.00033089,9]
[392406563,1761437435177,-500.0,0.00033089,9]
[392406564,1761437435186,-500.0,0.00033089,7]
[392406565,1761437435196,-316.11924763,0.00033089,7]
[392406566,1761437435205,-303.07184232,0.00033089,7]
[392406567,1761437435215,-168.67356399,0.00033089,7]
[392406568,1761437435224,-500.0,0.00033089,9]
[392406569,1761437435234,-500.0,0.00033089,9]
[392406570,1761437435243,-500.0,0.00033089,9]
[392406571,1761437435253,-500.0,0.00033089,9]
[392406572,1761437435262,-500.0,0.00033089,9]
[392406573,1761437435272,-500.0,0.00033089,9]
[392406574,1761437435281,-500.0,0.00033089,2]
[392406575,1761437435290,-500.0,0.00033089,9]
[392406576,1761437435299,-500.0,0.00033089,9]
[392406577,1761437435310,-500.0,0.00033089,9]
[392406578,1761437435320,-1282.6,0.00033089,9]
[392406579,1761437435329,-500.0,0.00033089,9]
[392406580,1761437435338,-500.0,0.00033089,9]
[392406581,1761437435347,-500.0,0.00033089,9]
[392406582,1761437435356,-500.0,0.00033089,9]
[392406583,1761437435365,-500.0,0.00033089,9]
[392406584,1761437435376,-764.31,0.00033089,9]
[392406585,1761437435385,-500.0,0.00033089,9]
[392406586,1761437435394,-578.82,0.00033089,9]
[392406587,1761437435403,-587.53,0.00033089,9]
[392406588,1761437435412,-500.0,0.00033089,9]
[392406589,1761437435421,-500.0,0.00033089,9]
[392406590,1761437435431,-500.0,0.00033089,9]
[392406591,1761437435440,-500.0,0.00033089,9]
[392406592,1761437435449,-500.0,0.00033089,9]
[392406593,1761437435458,-500.0,0.00033089,9]
[392406594,1761437435467,-510.95026179,0.00033089,2]
[392406595,1761437435476,-300.71399065,0.00033089,9]
[392406596,1761437435488,-199.28600935,0.00033089,9]
[392406597,1761437435497,-500.0,0.00033089,9]
[392406598,1761437435506,-500.0,0.00033089,9]
[392406599,1761437435515,-500.0,0.00033089,2]
[392406600,1761437435524,-500.0,0.00033089,9]
[392406601,1761437435533,-67147.80094703,0.0003309,3]
[392406605,1761437437821,-745.83216302,0.00031328,2]
[392406606,1761437437832,-551.69483698,0.00031328,2]
[392406607,1761437437841,-500.0,0.00033089,9]
[392406608,1761437437852,-66.83776302,0.00033089,9]
[392406609,1761437437893,-433.16223698,0.00033089,9]
[392406610,1761437437902,-1771.3096037,0.0003309,3]
[392406611,1761437437913,-2506.09710681,0.0003309,3]
[392406612,1761437437924,-2343.46774871,0.0003309,3]
[392406613,1761437437935,-990.15593611,0.0003309,3]
[392406614,1761437438086,-2253.96796503,0.0003309,3]
[392406615,1761437438098,-7837.18905974,0.0003309,3]
[392406616,1761437440305,-1116.2,0.0003309,3]
[392406618,1761437445303,-2029.9051474,0.0003309,3]
[392406619,1761437445976,-4110.41870686,0.0003309,3]
[392406643,1761438209228,300.0,0.00036911,50]
[392406644,1761438218593,300.0,0.00036911,50]
[392406645,1761438229225,154.59492031,0.00036911,50]
[392406651,1761438274192,388.52,0.00013699,2]
[392406654,1761438308082,4755.45,0.00015,2]
[392406655,1761438308126,36896.71435106,0.00015,2]
[392406656,1761438308161,17089.88136437,0.00015,2]
[392406693,1761438632292,-388.52,0.00020187,2]
[392406694,1761438632308,-250.0,0.00022206,2]
[392406695,1761438632318,-300.0,0.00022206,2]
[392406696,1761438632327,-388.52,0.00026676,2]
[392406697,1761438632339,-171.3,0.00029335,2]
[392406698,1761438632348,-150.00000001,0.0003023,4]
[392406699,1761438632358,-157.24254794,0.0003023,4]
[392406700,1761438632369,-277.35679052,0.00031421,2]
[392406701,1761438632378,-1000.0,0.00031432,2]
[392406702,1761438632387,-1000.0,0.00031705,2]
[392406703,1761438632406,-311.05,0.00031929,2]
[392406704,1761438632418,-1000.0,0.00031979,2]
[392406705,1761438632427,-305.9736867,0.00032,120]
[392406706,1761438632437,-696.68,0.00032041,2]
[392406707,1761438632447,-392.18,0.0003208,2]
[392406708,1761438632457,-150.0,0.00032207,2]
[392406709,1761438632467,-150.0,0.00032207,120]
[392406710,1761438632477,-1200.0,0.00032252,3]
[392406711,1761438632486,-1000.0,0.00032253,2]
[392406712,1761438632496,-200.0,0.00032269,2]
[392406713,1761438632506,-300.0,0.00032461,3]
[392406714,1761438632516,-400.0,0.00032461,3]
[392406715,1761438632525,-400.0,0.00032461,2]
[392406716,1761438632535,-300.0,0.00032461,3]
[392406717,1761438632546,-1200.0,0.00032462,3]
[392406718,1761438632556,-547.75,0.00032466,2]
[392406719,1761438632565,-414.48,0.00032466,2]
[392406720,1761438632575,-414.48,0.00032466,2]
[392406721,1761438632587,-372.01,0.00032466,2]
[392406722,1761438632597,-547.75,0.00032466,2]
[392406723,1761438632607,-1000.0,0.00032527,2]
[392406725,1761438632617,-772.44534435,0.00032627,2]
[392406727,1761438632626,-158.3,0.000327,2]
[392406729,1761438632636,-547.75,0.000327,2]
[392406731,1761438632645,-151.04,0.000327,2]
[392406733,1761438632655,-414.48,0.000327,2]
[392406735,1761438632664,-196.41,0.000327,2]
[392406736,1761438632674,-382.51508768,0.0003279,2]
[392406738,1761438632684,-150.0,0.00032798,2]
[392406740,1761438632693,-995.43602825,0.00032801,2]
[392406747,1761438632749,-4.56397175,0.00032801,2]
[392406748,1761438632759,-323.21184264,0.00032803,2]
[392406749,1761438632770,-543.0425,0.00032803,2]
[392406751,1761438638110,-227.80565736,0.00032803,2]
[392406752,1761438638120,-1400.0,0.000329,12]
[392406753,1761438638130,-322.6107,0.0003297,2]
[392406754,1761438638139,-151.0,0.0003297,2]
[392406755,1761438638149,-151.0,0.0003297,2]
[392406756,1761438638158,-151.0,0.0003297,2]
[392406757,1761438638168,-151.0,0.0003297,2]
[392406758,1761438638177,-151.0,0.0003297,2]
[392406759,1761438638187,-151.0,0.0003297,2]
[392406760,1761438638196,-17.83364264,0.0003297,2]
[392406763,1761438640377,-133.16635736,0.0003297,2]
[392406764,1761438640387,-151.0,0.0003297,2]
[392406765,1761438640398,-6.30314269,0.0003297,2]
[392406888,1761439832562,-173.0,0.0003,14]
[392406889,1761439832572,-195.35630365,0.0003,2]
[392406890,1761439832582,-150.0,0.00030033,4]
[392406891,1761439832591,-150.0,0.00030033,4]
[392406892,1761439832600,-150.0,0.00030033,4]
[392406893,1761439832609,-166.66,0.00030364,30]
[392406894,1761439832619,-159.5,0.00031,15]
[392406895,1761439832627,-160.02,0.00031,15]
[392406896,1761439832637,-166.66,0.00031003,30]
[392406897,1761439832647,-321.31334533,0.0003161,2]
[392406900,1761439832944,-500.87426153,0.0003161,2]
[392406901,1761439833000,-88.81239314,0.0003161,2]
[392406902,1761439833010,-166.66,0.00031642,30]
[392406903,1761439833019,-760.0,0.00031672,2]
[392406904,1761439833029,-1956.0,0.00031735,2]
[392406905,1761439833038,-188.15,0.00031761,2]
[392406906,1761439833048,-250.0,0.00031795,2]
[392406907,1761439833058,-1169.0,0.00031817,2]
[392406908,1761439833067,-674.0,0.0003188,2]
[392406909,1761439833078,-1200.0,0.00031887,3]
[392406910,1761439833088,-195.35630365,0.00031888,2]
[392406911,1761439833098,-258.58027684,0.00031888,2]
[392406912,1761439833108,-1242.0,0.00031944,2]
[392406913,1761439833117,-299.84,0.00031988,2]
[392406914,1761439833127,-300.0,0.00031991,3]
[392406915,1761439833137,-276.97,0.00031992,2]
[392406916,1761439833147,-244.77894936,0.00032,120]
[392406917,1761439833157,-159.5,0.00032,25]
[392406918,1761439833166,-159.5,0.00032,25]
[392406919,1761439833176,-1567.0,0.00032007,2]
[392406920,1761439833185,-500.0,0.0003205,7]
[392406921,1761439833195,-1200.0,0.0003205,7]
[392406922,1761439833204,-500.0,0.0003205,7]
[392406923,1761439833214,-195.35630365,0.0003205,2]
[392406924,1761439833223,-1217.0,0.00032071,2]
[392406925,1761439833233,-152.0,0.00032092,3]
[392406926,1761439833243,-168.52,0.00032178,2]
[392406927,1761439833252,-287.45,0.00032278,2]
[392406928,1761439833262,-157.3,0.00032278,2]
[392406929,1761439833272,-150.0,0.00032278,2]
[392406930,1761439833282,-168.43,0.00032278,2]
[392406931,1761439833291,-166.66,0.00032281,30]
[392406932,1761439833300,-258.58027683,0.00032377,2]
[392406933,1761439833310,-159.5,0.000326,30]
[392406934,1761439833319,-159.5,0.000326,30]
[392406935,1761439833330,-152.0,0.00032636,4]
[392406936,1761439833339,-154.90714469,0.00032857,2]
[392406937,1761439833349,-850.0,0.00032857,2]
[392406938,1761439833358,-1000.0,0.00032865,2]
[392406939,1761439833368,-258.58027683,0.00032865,2]
[392406940,1761439833377,-1425.0,0.0003287,2]
[392406941,1761439833386,-1425.0,0.00032871,2]
[392406942,1761439833395,-1200.0,0.00032872,7]
[392406943,1761439833404,-500.0,0.00032872,7]
[392406944,1761439833413,-1000.0,0.00032876,2]
[392406945,1761439833423,-1000.0,0.00032885,2]
[392406946,1761439833432,-430.60393496,0.00032895,2]
[392406947,1761439833442,-151.0,0.00032895,2]
[392406948,1761439833452,-151.0,0.00032895,2]
[392406949,1761439833461,-151.0,0.00032895,2]
[392406950,1761439833470,-151.0,0.00032895,2]
[392406951,1761439833479,-151.0,0.00032895,2]
[392406952,1761439833489,-500.0,0.00032895,2]
[392406953,1761439833498,-250.0,0.00032895,2]
[392406954,1761439833507,-151.0,0.00032895,2]
[392406955,1761439833516,-500.0,0.00032895,2]
[392406956,1761439833525,-250.0,0.00032895,2]
[392406957,1761439833534,-151.0,0.00032895,2]
[392406958,1761439833544,-500.0,0.00032895,2]
[392406959,1761439833553,-250.0,0.00032895,2]
[392406960,1761439833562,-151.0,0.00032895,2]
[392406961,1761439833571,-500.0,0.00032895,2]
[392406962,1761439833581,-250.0,0.00032895,2]